[Event "Early-Titled-Tuesday-Blitz-January-16-2024"]
[Site "Chess.com"]
[Date "2024.01.16"]
[Round "1"]
[White "Aguiar94"]
[Black "jefferyx"]
[Result "0-1"]
[WhiteElo "2523"]
[BlackElo "3024"]
[TimeControl "180+1"]
[EndTime "8:02:50 PST"]
[Termination "jefferyx won by resignation"]

1. e4 {[%clk 0:03:00.9]} 1... c5 {[%clk 0:02:59.8]} 2. Nf3 {[%clk 0:03:00.4]}
2... d6 {[%clk 0:03:00.4]} 3. d4 {[%clk 0:03:00.1]} 3... cxd4 {[%clk 0:03:01.3]}
4. Qxd4 {[%clk 0:03:00.3]} 4... Nc6 {[%clk 0:03:00.2]} 5. Bb5 {[%clk 0:03:00]}
5... a6 {[%clk 0:02:56.2]} 6. Bxc6+ {[%clk 0:03:00.2]} 6... bxc6 {[%clk
0:02:57.1]} 7. O-O {[%clk 0:02:54.1]} 7... e5 {[%clk 0:02:56.8]} 8. Qd3 {[%clk
0:02:53.7]} 8... Ne7 {[%clk 0:02:56.7]} 9. c4 {[%clk 0:02:54.1]} 9... Ng6 {[%clk
0:02:56.6]} 10. Nc3 {[%clk 0:02:53.3]} 10... Be7 {[%clk 0:02:56.4]} 11. h3
{[%clk 0:02:49.7]} 11... O-O {[%clk 0:02:53.5]} 12. Rd1 {[%clk 0:02:48.7]} 12...
Qc7 {[%clk 0:02:41.1]} 13. b3 {[%clk 0:02:45.1]} 13... f5 {[%clk 0:02:40.6]} 14.
Ba3 {[%clk 0:02:42.9]} 14... Rf6 {[%clk 0:02:36.6]} 15. Qe3 {[%clk 0:02:24.7]}
15... Qa5 {[%clk 0:02:18.8]} 16. Bb2 {[%clk 0:02:03.2]} 16... Nf4 {[%clk
0:02:18.4]} 17. Rd2 {[%clk 0:01:53.8]} 17... Rg6 {[%clk 0:02:17.7]} 18. Nh4
{[%clk 0:01:53.5]} 18... Bxh4 {[%clk 0:02:15.8]} 0-1

[Event "Early-Titled-Tuesday-Blitz-January-16-2024"]
[Site "Chess.com"]
[Date "2024.01.16"]
[Round "1"]
[White "Kolle05"]
[Black "BarloNadera"]
[Result "1-0"]
[WhiteElo "2609"]
[BlackElo "2247"]
[TimeControl "180+1"]
[EndTime "8:02:57 PST"]
[Termination "Kolle05 won by resignation"]

1. e4 {[%clk 0:03:00.9]} 1... c6 {[%clk 0:02:51.5]} 2. Nc3 {[%clk 0:03:00.1]}
2... d5 {[%clk 0:02:50.2]} 3. Nf3 {[%clk 0:03:00.7]} 3... Bg4 {[%clk 0:02:48.6]}
4. h3 {[%clk 0:03:00.3]} 4... Bh5 {[%clk 0:02:46]} 5. exd5 {[%clk 0:02:59.1]}
5... cxd5 {[%clk 0:02:45.3]} 6. g4 {[%clk 0:02:59.5]} 6... Bg6 {[%clk
0:02:44.1]} 7. Ne5 {[%clk 0:02:59]} 7... Nc6 {[%clk 0:02:39.9]} 8. Bb5 {[%clk
0:02:58.5]} 8... Rc8 {[%clk 0:02:39.2]} 9. d4 {[%clk 0:02:57.9]} 9... e6 {[%clk
0:02:38.5]} 10. h4 {[%clk 0:02:56.6]} 10... f6 {[%clk 0:02:37.7]} 11. Nxg6
{[%clk 0:02:25.7]} 11... hxg6 {[%clk 0:02:36.8]} 12. Bd3 {[%clk 0:02:23.4]}
12... Kf7 {[%clk 0:02:31.8]} 13. Ne2 {[%clk 0:02:19.3]} 13... Bd6 {[%clk
0:02:27]} 14. c3 {[%clk 0:02:19]} 14... Qc7 {[%clk 0:02:25.4]} 15. Be3 {[%clk
0:02:17.2]} 15... Nge7 {[%clk 0:02:24.7]} 16. Qd2 {[%clk 0:02:16.6]} 16... Qa5
{[%clk 0:02:16.4]} 17. Bf4 {[%clk 0:02:06.1]} 17... e5 {[%clk 0:02:04.5]} 18.
dxe5 {[%clk 0:02:03.9]} 18... fxe5 {[%clk 0:02:03.5]} 19. Bg3 {[%clk 0:02:03.4]}
1-0

[Event "Early-Titled-Tuesday-Blitz-January-16-2024"]
[Site "Chess.com"]
[Date "2024.01.16"]
[Round "1"]
[White "aa175"]
[Black "kai_nov"]
[Result "1-0"]
[WhiteElo "2667"]
[BlackElo "2334"]
[TimeControl "180+1"]
[EndTime "8:02:59 PST"]
[Termination "aa175 won by checkmate"]

1. d4 {[%clk 0:03:00.9]} 1... d5 {[%clk 0:02:59.2]} 2. Bf4 {[%clk 0:02:58.5]}
2... Nf6 {[%clk 0:02:57.8]} 3. e3 {[%clk 0:02:58.2]} 3... e6 {[%clk 0:02:57.5]}
4. Nf3 {[%clk 0:02:58.6]} 4... Bd6 {[%clk 0:02:57.1]} 5. Bd3 {[%clk 0:02:58.7]}
5... Bxf4 {[%clk 0:02:54.5]} 6. exf4 {[%clk 0:02:59.6]} 6... O-O {[%clk
0:02:53.9]} 7. Nbd2 {[%clk 0:02:58.8]} 7... c6 {[%clk 0:02:52.7]} 8. c3 {[%clk
0:02:56.9]} 8... Qb6 {[%clk 0:02:49.3]} 9. Qc2 {[%clk 0:02:55.6]} 9... Nbd7
{[%clk 0:02:37.4]} 10. h4 {[%clk 0:02:51.5]} 10... c5 {[%clk 0:02:35.9]} 11.
O-O-O {[%clk 0:02:49.1]} 11... c4 {[%clk 0:02:35.4]} 12. Be2 {[%clk 0:02:48.5]}
12... a5 {[%clk 0:02:19.2]} 13. Ng5 {[%clk 0:02:48]} 13... h6 {[%clk 0:02:18]}
14. Ndf3 {[%clk 0:02:48]} 14... hxg5 {[%clk 0:01:57.8]} 15. hxg5 {[%clk
0:02:48.9]} 15... Ne4 {[%clk 0:01:55.2]} 16. Bxc4 {[%clk 0:02:49.4]} 16... dxc4
{[%clk 0:01:52.1]} 17. Qxe4 {[%clk 0:02:48.6]} 17... g6 {[%clk 0:01:50.7]} 18.
f5 {[%clk 0:02:45.8]} 18... exf5 {[%clk 0:01:49.3]} 19. Qh4 {[%clk 0:02:45.9]}
19... f6 {[%clk 0:01:22.1]} 20. Qh7# {[%clk 0:02:36.5]} 1-0

[Event "Early-Titled-Tuesday-Blitz-January-16-2024"]
[Site "Chess.com"]
[Date "2024.01.16"]
[Round "1"]
[White "Talent-OF-Slovenia"]
[Black "ChessSwole"]
[Result "0-1"]
[WhiteElo "2380"]
[BlackElo "2708"]
[TimeControl "180+1"]
[EndTime "8:03:12 PST"]
[Termination "ChessSwole won by resignation"]

1. e4 {[%clk 0:03:00.9]} 1... e6 {[%clk 0:02:55]} 2. d4 {[%clk 0:03:00.3]} 2...
d5 {[%clk 0:02:55.4]} 3. Nd2 {[%clk 0:03:00.4]} 3... c5 {[%clk 0:02:54.4]} 4.
Ngf3 {[%clk 0:02:59.5]} 4... cxd4 {[%clk 0:02:53]} 5. Nxd4 {[%clk 0:03:00.4]}
5... Nf6 {[%clk 0:02:53.5]} 6. e5 {[%clk 0:02:57.7]} 6... Nfd7 {[%clk
0:02:53.3]} 7. N2f3 {[%clk 0:02:58.2]} 7... Nc6 {[%clk 0:02:45.5]} 8. Nxc6
{[%clk 0:02:58]} 8... bxc6 {[%clk 0:02:44.9]} 9. Bf4 {[%clk 0:02:56.6]} 9... Ba6
{[%clk 0:02:34]} 10. Be2 {[%clk 0:02:26.2]} 10... Bxe2 {[%clk 0:02:32.3]} 11.
Qxe2 {[%clk 0:02:27.1]} 11... Rb8 {[%clk 0:02:32.9]} 12. b3 {[%clk 0:02:24.8]}
12... Bb4+ {[%clk 0:02:31.2]} 13. Bd2 {[%clk 0:02:24.5]} 13... O-O {[%clk
0:02:27.9]} 14. O-O {[%clk 0:02:23.9]} 14... Bxd2 {[%clk 0:02:28]} 15. Qxd2
{[%clk 0:02:24.8]} 15... Nc5 {[%clk 0:02:24.6]} 16. Rfd1 {[%clk 0:02:19.9]}
16... Ne4 {[%clk 0:02:18.3]} 17. Qf4 {[%clk 0:02:15.5]} 17... Qb6 {[%clk
0:02:16]} 18. c4 {[%clk 0:02:08.9]} 18... Qxf2+ {[%clk 0:02:14.8]} 19. Kh1
{[%clk 0:02:05.9]} 19... Qc5 {[%clk 0:01:49]} 20. Rac1 {[%clk 0:02:01.6]} 20...
Nf2+ {[%clk 0:01:47.5]} 0-1

[Event "Early-Titled-Tuesday-Blitz-January-16-2024"]
[Site "Chess.com"]
[Date "2024.01.16"]
[Round "1"]
[White "larsmandreassen"]
[Black "nickmatta"]
[Result "1-0"]
[WhiteElo "2215"]
[BlackElo "2574"]
[TimeControl "180+1"]
[EndTime "8:03:12 PST"]
[Termination "larsmandreassen won by resignation"]

1. d4 {[%clk 0:01:49.4]} 1... Nf6 {[%clk 0:02:57.1]} 2. Nf3 {[%clk 0:01:50.3]}
2... g6 {[%clk 0:02:57.4]} 3. Bg5 {[%clk 0:01:50.9]} 3... Bg7 {[%clk 0:02:57.5]}
4. Nc3 {[%clk 0:01:51.5]} 4... d5 {[%clk 0:02:57]} 5. Bxf6 {[%clk 0:01:51]} 5...
Bxf6 {[%clk 0:02:57.9]} 6. e4 {[%clk 0:01:51.4]} 6... dxe4 {[%clk 0:02:58.8]} 7.
Nxe4 {[%clk 0:01:50.4]} 7... Bg7 {[%clk 0:02:59]} 8. Bc4 {[%clk 0:01:51]} 8...
Nd7 {[%clk 0:02:58.7]} 9. c3 {[%clk 0:01:50.1]} 9... b6 {[%clk 0:02:57.8]} 10.
O-O {[%clk 0:01:49.7]} 10... Bb7 {[%clk 0:02:58.4]} 11. Re1 {[%clk 0:01:50.2]}
11... O-O {[%clk 0:02:58.4]} 12. Qe2 {[%clk 0:01:50.8]} 12... c5 {[%clk
0:02:58.5]} 13. dxc5 {[%clk 0:01:46.4]} 13... bxc5 {[%clk 0:02:58.9]} 14. Rad1
{[%clk 0:01:45.7]} 14... Qc7 {[%clk 0:02:58.6]} 15. Neg5 {[%clk 0:01:43.6]}
15... Nb6 {[%clk 0:02:53.3]} 16. Bxf7+ {[%clk 0:01:32.3]} 16... Rxf7 {[%clk
0:02:52.1]} 17. Nxf7 {[%clk 0:01:28.9]} 17... Kxf7 {[%clk 0:02:51.5]} 18. Qe6+
{[%clk 0:01:28.3]} 18... Kf8 {[%clk 0:02:45.5]} 19. Ng5 {[%clk 0:01:28.4]} 19...
Qf4 {[%clk 0:02:25.3]} 20. Nxh7+ {[%clk 0:01:20.9]} 1-0

[Event "Early-Titled-Tuesday-Blitz-January-16-2024"]
[Site "Chess.com"]
[Date "2024.01.16"]
[Round "1"]
[White "hawes33"]
[Black "Puzzlebot_1294"]
[Result "0-1"]
[WhiteElo "2257"]
[BlackElo "2611"]
[TimeControl "180+1"]
[EndTime "8:03:14 PST"]
[Termination "Puzzlebot_1294 won by resignation"]

1. e4 {[%clk 0:03:00.9]} 1... e5 {[%clk 0:02:59.3]} 2. Nf3 {[%clk 0:03:00.2]}
2... Nc6 {[%clk 0:02:59.6]} 3. d4 {[%clk 0:02:58.3]} 3... exd4 {[%clk
0:02:55.2]} 4. Bc4 {[%clk 0:02:57.5]} 4... Bc5 {[%clk 0:02:54.8]} 5. c3 {[%clk
0:02:57]} 5... Nf6 {[%clk 0:02:53.4]} 6. e5 {[%clk 0:02:54.2]} 6... d5 {[%clk
0:02:52.9]} 7. Bb5 {[%clk 0:02:54.1]} 7... Ne4 {[%clk 0:02:52.9]} 8. cxd4 {[%clk
0:02:54]} 8... Bb6 {[%clk 0:02:53.3]} 9. O-O {[%clk 0:02:53.1]} 9... O-O {[%clk
0:02:52.6]} 10. h3 {[%clk 0:02:52.8]} 10... f6 {[%clk 0:02:50.8]} 11. Nc3 {[%clk
0:02:48.8]} 11... Nxc3 {[%clk 0:02:41.3]} 12. bxc3 {[%clk 0:02:48.5]} 12... fxe5
{[%clk 0:02:42.2]} 13. Bxc6 {[%clk 0:02:45.5]} 13... bxc6 {[%clk 0:02:41.3]} 14.
Nxe5 {[%clk 0:02:45.1]} 14... Bb7 {[%clk 0:02:35.8]} 15. a4 {[%clk 0:02:41.8]}
15... a5 {[%clk 0:02:33.7]} 16. Rb1 {[%clk 0:02:39.8]} 16... Qd6 {[%clk
0:02:29.9]} 17. Ba3 {[%clk 0:02:35.3]} 17... Qxa3 {[%clk 0:02:27.5]} 18. Nd7
{[%clk 0:02:24.5]} 18... Rf7 {[%clk 0:02:19]} 19. Qg4 {[%clk 0:02:19.3]} 19...
Bc8 {[%clk 0:02:10.3]} 20. Nxb6 {[%clk 0:02:12.3]} 20... Bxg4 {[%clk 0:02:08.8]}
21. Nxa8 {[%clk 0:02:12.2]} 21... Bf5 {[%clk 0:02:08.1]} 22. Rb8+ {[%clk
0:02:08.3]} 22... Rf8 {[%clk 0:02:05.5]} 23. Rxf8+ {[%clk 0:02:08.2]} 23... Kxf8
{[%clk 0:02:06.4]} 24. Nxc7 {[%clk 0:02:08.7]} 24... Qd6 {[%clk 0:02:00.9]} 0-1

[Event "Early-Titled-Tuesday-Blitz-January-16-2024"]
[Site "Chess.com"]
[Date "2024.01.16"]
[Round "1"]
[White "Rud_Makarian"]
[Black "Casper"]
[Result "1-0"]
[WhiteElo "3031"]
[BlackElo "2527"]
[TimeControl "180+1"]
[EndTime "8:03:15 PST"]
[Termination "Rud_Makarian won by resignation"]

1. d4 {[%clk 0:03:00.9]} 1... Nf6 {[%clk 0:02:59]} 2. c4 {[%clk 0:03:01.4]} 2...
g6 {[%clk 0:02:58.6]} 3. Nc3 {[%clk 0:03:00.7]} 3... Bg7 {[%clk 0:02:59.5]} 4.
e4 {[%clk 0:03:00.8]} 4... O-O {[%clk 0:02:59.2]} 5. Be2 {[%clk 0:03:01.5]} 5...
d6 {[%clk 0:02:58.9]} 6. Be3 {[%clk 0:03:02.2]} 6... a5 {[%clk 0:02:57.8]} 7.
Nf3 {[%clk 0:03:00.9]} 7... Na6 {[%clk 0:02:57.6]} 8. O-O {[%clk 0:02:58.2]}
8... e5 {[%clk 0:02:57.8]} 9. d5 {[%clk 0:02:40.7]} 9... Nc5 {[%clk 0:02:56.3]}
10. Nd2 {[%clk 0:02:40.9]} 10... Bd7 {[%clk 0:02:43.2]} 11. b3 {[%clk
0:02:38.3]} 11... h5 {[%clk 0:02:38.3]} 12. h3 {[%clk 0:02:26.9]} 12... Nh7
{[%clk 0:02:26.8]} 13. a3 {[%clk 0:02:20.5]} 13... f5 {[%clk 0:02:08]} 14. f3
{[%clk 0:01:41.5]} 1-0

[Event "Early-Titled-Tuesday-Blitz-January-16-2024"]
[Site "Chess.com"]
[Date "2024.01.16"]
[Round "1"]
[White "ahmedkandiliii"]
[Black "scarabee43"]
[Result "0-1"]
[WhiteElo "2451"]
[BlackElo "2827"]
[TimeControl "180+1"]
[EndTime "8:03:15 PST"]
[Termination "scarabee43 won by resignation"]

1. e4 {[%clk 0:03:00.9]} 1... c5 {[%clk 0:02:59.3]} 2. Nf3 {[%clk 0:03:01.4]}
2... e6 {[%clk 0:02:59.7]} 3. c4 {[%clk 0:03:00.1]} 3... Nc6 {[%clk 0:02:58.5]}
4. Nc3 {[%clk 0:03:00.7]} 4... Nf6 {[%clk 0:02:56.3]} 5. Be2 {[%clk 0:03:00.1]}
5... d6 {[%clk 0:02:52.7]} 6. O-O {[%clk 0:02:59.7]} 6... Nd4 {[%clk 0:02:48.3]}
7. d3 {[%clk 0:02:58.5]} 7... Be7 {[%clk 0:02:47.6]} 8. Nxd4 {[%clk 0:02:57.5]}
8... cxd4 {[%clk 0:02:47.5]} 9. Nb1 {[%clk 0:02:58.2]} 9... O-O {[%clk
0:02:47.2]} 10. Nd2 {[%clk 0:02:58.2]} 10... e5 {[%clk 0:02:43.1]} 11. Nf3
{[%clk 0:02:57]} 11... a6 {[%clk 0:02:41.2]} 12. b4 {[%clk 0:02:56.2]} 12... Qc7
{[%clk 0:02:38.9]} 13. a4 {[%clk 0:02:55.2]} 13... Bg4 {[%clk 0:02:36.6]} 14. h3
{[%clk 0:02:51.4]} 14... Bxf3 {[%clk 0:02:35.8]} 15. Bxf3 {[%clk 0:02:49.6]}
15... d5 {[%clk 0:02:31]} 16. exd5 {[%clk 0:02:40.7]} 16... Bxb4 {[%clk
0:02:31]} 17. Bg5 {[%clk 0:02:40.4]} 17... Nd7 {[%clk 0:02:29.8]} 18. Re1 {[%clk
0:02:34.5]} 18... Bxe1 {[%clk 0:02:29.2]} 19. Qxe1 {[%clk 0:02:35.4]} 19... Nc5
{[%clk 0:02:28.7]} 20. Bd2 {[%clk 0:02:33.2]} 20... Nxd3 {[%clk 0:02:28]} 21.
Qe4 {[%clk 0:02:30.2]} 21... Nc5 {[%clk 0:02:27.7]} 22. Qh4 {[%clk 0:02:30.1]}
22... Nb3 {[%clk 0:02:27]} 23. Bh6 {[%clk 0:02:22.9]} 23... gxh6 {[%clk
0:02:21.7]} 24. Qxh6 {[%clk 0:02:09.4]} 24... f6 {[%clk 0:02:21.8]} 25. d6
{[%clk 0:02:03.1]} 25... Qg7 {[%clk 0:02:19.3]} 26. Bd5+ {[%clk 0:01:57.4]}
26... Kh8 {[%clk 0:02:19.5]} 27. Qxg7+ {[%clk 0:01:48.8]} 27... Kxg7 {[%clk
0:02:18.8]} 28. Ra3 {[%clk 0:01:49.7]} 28... Nc5 {[%clk 0:02:18]} 0-1

[Event "Early-Titled-Tuesday-Blitz-January-16-2024"]
[Site "Chess.com"]
[Date "2024.01.16"]
[Round "1"]
[White "picturesquecheck"]
[Black "I_am_Javi"]
[Result "0-1"]
[WhiteElo "2415"]
[BlackElo "2777"]
[TimeControl "180+1"]
[EndTime "8:03:34 PST"]
[Termination "I_am_Javi won by resignation"]

1. e4 {[%clk 0:03:00.9]} 1... e5 {[%clk 0:02:59.5]} 2. Nc3 {[%clk 0:02:59.8]}
2... Nc6 {[%clk 0:02:59]} 3. Bc4 {[%clk 0:02:59.3]} 3... Bc5 {[%clk 0:02:55.4]}
4. d3 {[%clk 0:02:59.2]} 4... d6 {[%clk 0:02:53.7]} 5. Nge2 {[%clk 0:02:58.9]}
5... f5 {[%clk 0:02:50.5]} 6. exf5 {[%clk 0:02:56.4]} 6... Bxf5 {[%clk
0:02:51.4]} 7. O-O {[%clk 0:02:56.3]} 7... Nf6 {[%clk 0:02:46.7]} 8. Be3 {[%clk
0:02:55.1]} 8... Bb6 {[%clk 0:02:43.5]} 9. d4 {[%clk 0:02:39.3]} 9... e4 {[%clk
0:02:18.1]} 10. Bg5 {[%clk 0:02:34.9]} 10... h6 {[%clk 0:01:24.4]} 11. Ng3
{[%clk 0:02:30.6]} 11... Bh7 {[%clk 0:01:05.7]} 12. Bxf6 {[%clk 0:02:21.1]}
12... Qxf6 {[%clk 0:01:06.6]} 13. Ngxe4 {[%clk 0:02:16]} 0-1

[Event "Early-Titled-Tuesday-Blitz-January-16-2024"]
[Site "Chess.com"]
[Date "2024.01.16"]
[Round "1"]
[White "AlexTruskavetsky"]
[Black "UK_23"]
[Result "1-0"]
[WhiteElo "2690"]
[BlackElo "2373"]
[TimeControl "180+1"]
[EndTime "8:03:36 PST"]
[Termination "AlexTruskavetsky won by resignation"]

1. d4 {[%clk 0:03:00.9]} 1... d5 {[%clk 0:02:57.5]} 2. c4 {[%clk 0:02:59]} 2...
e6 {[%clk 0:02:57.4]} 3. Nf3 {[%clk 0:02:57.8]} 3... Nf6 {[%clk 0:02:57.7]} 4.
g3 {[%clk 0:02:57.1]} 4... Be7 {[%clk 0:02:57.8]} 5. Bg2 {[%clk 0:02:57]} 5...
O-O {[%clk 0:02:58.2]} 6. O-O {[%clk 0:02:57.1]} 6... dxc4 {[%clk 0:02:58.1]} 7.
Qc2 {[%clk 0:02:51.8]} 7... a6 {[%clk 0:02:58]} 8. a4 {[%clk 0:02:51.1]} 8...
Bd7 {[%clk 0:02:41.9]} 9. Qxc4 {[%clk 0:02:50.6]} 9... Bc6 {[%clk 0:02:41]} 10.
Bg5 {[%clk 0:02:49.9]} 10... a5 {[%clk 0:02:41]} 11. Nc3 {[%clk 0:02:48.4]}
11... h6 {[%clk 0:02:35.5]} 12. Bxf6 {[%clk 0:02:47.3]} 12... Bxf6 {[%clk
0:02:36.4]} 13. e4 {[%clk 0:02:47.2]} 13... Be7 {[%clk 0:02:32.7]} 14. Rad1
{[%clk 0:02:39.5]} 14... Na6 {[%clk 0:02:32.3]} 15. Rfe1 {[%clk 0:02:34.6]}
15... Nb4 {[%clk 0:02:31]} 16. d5 {[%clk 0:02:31.4]} 16... exd5 {[%clk 0:02:30]}
17. exd5 {[%clk 0:02:32.3]} 17... Bd7 {[%clk 0:02:26.5]} 18. Nb5 {[%clk
0:02:30.1]} 18... Bxb5 {[%clk 0:02:12.8]} 19. Qxb5 {[%clk 0:02:29]} 19... Bd6
{[%clk 0:02:13.3]} 20. Qxb7 {[%clk 0:02:21]} 20... Qf6 {[%clk 0:02:03.3]} 21.
Qb5 {[%clk 0:02:05.7]} 21... Qxb2 {[%clk 0:01:56.8]} 22. Nd4 {[%clk 0:02:01.6]}
22... Rfe8 {[%clk 0:01:37.8]} 23. Rxe8+ {[%clk 0:01:59.6]} 23... Rxe8 {[%clk
0:01:38.7]} 24. Qxe8+ {[%clk 0:01:59.2]} 1-0

[Event "Early-Titled-Tuesday-Blitz-January-16-2024"]
[Site "Chess.com"]
[Date "2024.01.16"]
[Round "1"]
[White "krzyzan94"]
[Black "Phelathegreat"]
[Result "1-0"]
[WhiteElo "2796"]
[BlackElo "2430"]
[TimeControl "180+1"]
[EndTime "8:03:37 PST"]
[Termination "krzyzan94 won by resignation"]

1. e4 {[%clk 0:03:00.9]} 1... e6 {[%clk 0:02:59.3]} 2. d4 {[%clk 0:03:00.5]}
2... d5 {[%clk 0:02:59.8]} 3. Nc3 {[%clk 0:03:01.1]} 3... Nf6 {[%clk 0:02:59.7]}
4. e5 {[%clk 0:03:01]} 4... Nfd7 {[%clk 0:02:59.8]} 5. Nce2 {[%clk 0:03:01.7]}
5... c5 {[%clk 0:02:59.6]} 6. c3 {[%clk 0:03:02.3]} 6... Nc6 {[%clk 0:02:59.5]}
7. Nf3 {[%clk 0:03:02.9]} 7... b5 {[%clk 0:02:57.7]} 8. a3 {[%clk 0:02:57.3]}
8... b4 {[%clk 0:02:55.2]} 9. g3 {[%clk 0:02:49]} 9... Qb6 {[%clk 0:02:54]} 10.
axb4 {[%clk 0:02:45.7]} 10... cxd4 {[%clk 0:02:39.1]} 11. Nexd4 {[%clk
0:02:31.5]} 11... Ndxe5 {[%clk 0:02:31.6]} 12. Nxe5 {[%clk 0:02:26.6]} 12...
Nxe5 {[%clk 0:02:31]} 13. Bb5+ {[%clk 0:02:14.7]} 13... Bd7 {[%clk 0:02:19.5]}
14. Qe2 {[%clk 0:02:11.7]} 14... Bxb5 {[%clk 0:02:10.3]} 15. Qxb5+ {[%clk
0:01:56.7]} 15... Nd7 {[%clk 0:02:00.5]} 16. Be3 {[%clk 0:01:53.8]} 16... Qc7
{[%clk 0:01:50.2]} 17. Qc6 {[%clk 0:01:45.5]} 17... Bd6 {[%clk 0:01:41.3]} 18.
Qxa8+ {[%clk 0:01:43.3]} 1-0

[Event "Early-Titled-Tuesday-Blitz-January-16-2024"]
[Site "Chess.com"]
[Date "2024.01.16"]
[Round "1"]
[White "moro182"]
[Black "iJueles"]
[Result "0-1"]
[WhiteElo "2809"]
[BlackElo "2464"]
[TimeControl "180+1"]
[EndTime "8:03:44 PST"]
[Termination "iJueles won by resignation"]

1. d4 {[%clk 0:03:00.9]} 1... Nf6 {[%clk 0:02:58.8]} 2. Bf4 {[%clk 0:03:00]}
2... d5 {[%clk 0:02:58.3]} 3. e3 {[%clk 0:02:57.4]} 3... c5 {[%clk 0:02:57.9]}
4. dxc5 {[%clk 0:02:58.3]} 4... Nc6 {[%clk 0:02:56.5]} 5. Bb5 {[%clk 0:02:52.3]}
5... Qa5+ {[%clk 0:02:28.7]} 6. Nc3 {[%clk 0:02:51.8]} 6... a6 {[%clk
0:02:10.8]} 7. Bxc6+ {[%clk 0:02:51.6]} 7... bxc6 {[%clk 0:02:11.7]} 8. Qd4
{[%clk 0:02:51.7]} 8... Bf5 {[%clk 0:02:07.6]} 9. a4 {[%clk 0:02:39]} 9... Bxc2
{[%clk 0:01:56.8]} 10. b4 {[%clk 0:02:38.5]} 10... Qd8 {[%clk 0:01:57.1]} 11.
Nf3 {[%clk 0:02:38.8]} 11... e6 {[%clk 0:01:56.1]} 12. O-O {[%clk 0:02:37.8]}
12... Be7 {[%clk 0:01:54.7]} 13. b5 {[%clk 0:02:38]} 13... axb5 {[%clk
0:01:54.2]} 14. axb5 {[%clk 0:02:38.9]} 14... cxb5 {[%clk 0:01:50.4]} 15. Nxb5
{[%clk 0:02:33.2]} 15... O-O {[%clk 0:01:46.9]} 16. c6 {[%clk 0:02:31.5]} 16...
Ne4 {[%clk 0:01:13]} 17. c7 {[%clk 0:02:17]} 17... Qc8 {[%clk 0:01:09]} 18. Na7
{[%clk 0:02:07.1]} 18... Qb7 {[%clk 0:01:02]} 0-1

[Event "Early-Titled-Tuesday-Blitz-January-16-2024"]
[Site "Chess.com"]
[Date "2024.01.16"]
[Round "1"]
[White "MikeSailer"]
[Black "ozates"]
[Result "0-1"]
[WhiteElo "2203"]
[BlackElo "2592"]
[TimeControl "180+1"]
[EndTime "8:03:48 PST"]
[Termination "ozates won by resignation"]

1. d4 {[%clk 0:02:59.7]} 1... Nf6 {[%clk 0:02:59.4]} 2. Bg5 {[%clk 0:02:52.2]}
2... Ne4 {[%clk 0:02:58.8]} 3. Bf4 {[%clk 0:02:51.8]} 3... c5 {[%clk 0:02:59.1]}
4. f3 {[%clk 0:02:51.5]} 4... Nf6 {[%clk 0:02:59.5]} 5. d5 {[%clk 0:02:51.6]}
5... Qb6 {[%clk 0:02:58.6]} 6. Nd2 {[%clk 0:02:39.3]} 6... Nxd5 {[%clk
0:02:58.2]} 7. Bxb8 {[%clk 0:02:15.5]} 7... Ne3 {[%clk 0:02:48.5]} 8. Qc1 {[%clk
0:01:29.4]} 8... Rxb8 {[%clk 0:02:47.9]} 9. Ne4 {[%clk 0:00:55.6]} 9... c4
{[%clk 0:02:42.1]} 10. g3 {[%clk 0:00:48.1]} 10... d5 {[%clk 0:02:41.3]} 11. Nc3
{[%clk 0:00:47.4]} 11... Bf5 {[%clk 0:02:38.1]} 12. Kd2 {[%clk 0:00:28.5]} 12...
Qd4+ {[%clk 0:02:36.7]} 13. Ke1 {[%clk 0:00:26.7]} 13... Nxc2+ {[%clk
0:02:37.6]} 14. Qxc2 {[%clk 0:00:27]} 14... Bxc2 {[%clk 0:02:38.5]} 0-1

[Event "Early-Titled-Tuesday-Blitz-January-16-2024"]
[Site "Chess.com"]
[Date "2024.01.16"]
[Round "1"]
[White "StankovicIvan"]
[Black "AryanTari"]
[Result "0-1"]
[WhiteElo "2491"]
[BlackElo "2916"]
[TimeControl "180+1"]
[EndTime "8:03:57 PST"]
[Termination "AryanTari won by resignation"]

1. e4 {[%clk 0:03:00.9]} 1... a6 {[%clk 0:02:44.3]} 2. d4 {[%clk 0:02:59.4]}
2... e6 {[%clk 0:02:45.2]} 3. Bd3 {[%clk 0:02:58.6]} 3... d5 {[%clk 0:02:45.5]}
4. e5 {[%clk 0:02:59.1]} 4... Bd7 {[%clk 0:02:42.3]} 5. Nf3 {[%clk 0:02:58.4]}
5... Bb5 {[%clk 0:02:42.4]} 6. O-O {[%clk 0:02:45.1]} 6... h6 {[%clk 0:02:40.6]}
7. Re1 {[%clk 0:02:44]} 7... c5 {[%clk 0:02:39.5]} 8. c3 {[%clk 0:02:38]} 8...
Bxd3 {[%clk 0:02:39.3]} 9. Qxd3 {[%clk 0:02:37.9]} 9... Nc6 {[%clk 0:02:40.2]}
10. dxc5 {[%clk 0:02:33]} 10... Bxc5 {[%clk 0:02:40]} 11. b4 {[%clk 0:02:33.2]}
11... Ba7 {[%clk 0:02:39.7]} 12. Bf4 {[%clk 0:02:23.5]} 12... Nge7 {[%clk
0:02:39]} 13. h4 {[%clk 0:02:22.8]} 13... Nf5 {[%clk 0:02:15.1]} 14. h5 {[%clk
0:02:21.1]} 14... g5 {[%clk 0:02:03.8]} 15. hxg6 {[%clk 0:02:17.9]} 15... fxg6
{[%clk 0:02:04.7]} 16. Nbd2 {[%clk 0:02:11.3]} 16... g5 {[%clk 0:02:02.6]} 17.
Bh2 {[%clk 0:02:11.1]} 17... g4 {[%clk 0:02:02.4]} 18. Nd4 {[%clk 0:02:08.4]}
18... Ncxd4 {[%clk 0:02:01.4]} 19. cxd4 {[%clk 0:02:08.4]} 19... Bxd4 {[%clk
0:02:02.3]} 20. Rac1 {[%clk 0:02:01.4]} 20... Qh4 {[%clk 0:01:57.1]} 21. Nf1
{[%clk 0:01:20]} 21... Bxf2+ {[%clk 0:01:50.5]} 22. Kh1 {[%clk 0:01:20.2]} 0-1